Cogmind - Beta 15 @@@ ROGUE MODE // 2025.07.21 @ 18:38:11 Player: beans Result: Destroyed by S-10 Pest with Light Assault Rifle Performance ------------- Evolutions (2) 1000 Regions Visited (3) 600 Robots Destroyed (97) 485 Value Destroyed (2086) 2086 Prototype IDs (5) 100 Alien Tech Used (0) 0 Bonus (38) 38 TOTAL SCORE: 4309 Bonus ------- High Alert Combat Kills 38 Cogmind --------- Core Integrity 0/550 Matter 700/700 Energy 125/125 System Corruption 5% Temperature Cool (0) Movement Treading (240) Ox1 Location -8/Materials Parts ------- > --- POWER (1) -------- Light Ion Engine > --- PROPULSION (2) --- Light Treads > --- UTILITY (5) ------ Small Storage Unit High-capacity Matter Pod High-capacity Matter Pod (fused) Signal Interpreter > --- WEAPON (3) ------- Heavy EM Shotgun Heavy Assault Rifle > --- INVENTORY (8) ---- High-capacity Matter Pod (200) Target Analyzer Shotgun Peak State ------------ > --- POWER ------------ Light Nuclear Core > --- PROPULSION ------- Light Treads Light Treads > --- UTILITY ---------- Small Storage Unit High-capacity Matter Pod High-capacity Matter Pod High-capacity Matter Pod Signal Interpreter > --- WEAPON ----------- Heavy EM Shotgun Heavy EM Shotgun Heavy Assault Rifle > --- INVENTORY -------- Ion Engine High-capacity Matter Pod Target Analyzer Shotgun [Rating: 20] Favorites ----------- Power Heavy Ion Engine Engine Heavy Ion Engine Power Core Light Nuclear Core Propulsion Light Treads Treads Light Treads Hover Unit Airjet Utility High-capacity Matter Pod Device ECM Suite Storage High-capacity Matter Pod Processor Signal Interpreter Weapon Improved Assault Rifle Energy Gun Heavy EM Shotgun Energy Cannon Advanced Beam Cannon Ballistic Gun Improved Assault Rifle Launcher Grenade Launcher Build | -11 -10 -9 -8 ------- Run | Yrd Mat Mat Mat Slots Evolved 4 | . . 2 2 Power . | . . . . Propulsion . | . . . . Utility 3 | . . 2 1 Weapon 1 | . . . 1 Parts Attached 34 | 5 4 13 12 Power 7 | 1 1 1 4 Engine 6 | 1 1 1 3 Core 1 | . . . 1 Reactor . | . . . . Propulsion 6 | 2 . 2 2 Treads 4 | 2 . . 2 Leg . | . . . . Wheel . | . . . . Hover 2 | . . 2 . Flight . | . . . . Utility 6 | . 2 3 1 Device 1 | . 1 . . Storage 4 | . . 3 1 Processor 1 | . 1 . . Hackware . | . . . . Protection . | . . . . Artifact . | . . . . Weapon 15 | 2 1 7 5 Energy Gun 3 | . . . 3 Energy Cannon 1 | . . 1 . Ballistic Gun 10 | 2 . 6 2 Ballistic Cannon . | . . . . Launcher 1 | . 1 . . Special Weapon . | . . . . Impact Weapon . | . . . . Slashing Weapon . | . . . . Piercing Weapon . | . . . . Special Melee Weapon . | . . . . Unidentified Prototypes 5 | . 1 2 2 Parts Lost 12 | . . 2 10 Power 2 | . . 1 1 Propulsion 4 | . . 1 3 Utility 1 | . . . 1 Weapon 5 | . . . 5 Highest Loss Streak 5 | . . 1 5 To Critical Strikes 1 | . . . 1 Average Backups 3 | . 2 4 2 Power . | . . . . Propulsion . | . . . . Utility 2 | . 1 2 2 Weapon 1 | . . 1 . Tool/Special . | . . . . Unused Backups 6 | . 1 . 5 Power 1 | . . . 1 Propulsion . | . . . . Utility 4 | . 1 . 3 Weapon 1 | . . . 1 Tool/Special . | . . . . Average Slot Usage (%) 84 | . 94 83 82 Engine 8 | . 14 10 3 Treads 12 | . 28 9 11 Hover 4 | . . 7 1 Device 1 | . 10 1 . Storage 24 | . . 22 34 Processor 10 | . 11 11 9 Energy Gun 3 | . . . 9 Ballistic Gun 17 | . 15 20 12 Launcher 2 | . 12 1 . Peak Build Rating 20 | 5 9 18 20 Average Rating 12 | 3 6 13 14 On Entrance 7 | . 5 9 15 Naked Turns . | . . . . Heaviest Build 35 | 9 15 23 35 Greatest Support 40 | 40 40 40 40 Greatest Overweight (x) 7 | . . 2 7 Average Overweight (x) . | . . . 1 Largest Inventory Capacity 8 | 5 5 8 8 Average Capacity 6 | 5 5 5 8 Most Carried 5 | 5 5 5 4 Average Carried 3 | . 2 4 2 Final Capacity 8 | 5 5 8 8 Final Carried 5 | . 5 5 3 Class Distribution -------------------- 77% | Mutant 15% | Scavenger-Gunner 4% | Scavenger-Mutant Dominant Class ---------------- Mutant | -10/Materials Mutant | -9/Materials Scavenger-Gunner | -8/Materials Resources | -11 -10 -9 -8 ----------- Run | Yrd Mat Mat Mat Matter Collected 2478 | 225 77 1587 589 Remotely . | . . . . Salvage Created 3237 | . 302 1502 1433 Parts 207 | . 20 98 89 Haulers Intercepted 5 | . . 3 2 Recyclers Shooed 5 | . 1 3 1 Parts Field Recycled . | . . . . Retrieved Matter . | . . . . Parts Self-Destructed . | . . . . Prevented . | . . . . Kills | -11 -10 -9 -8 ------- Run | Yrd Mat Mat Mat Combat Hostiles Destroyed 45 | . 3 26 16 Guns 32 | . . 21 11 AOE 11 | . 3 5 3 Classes Destroyed 12 | . 5 5 2 Worker 13 | . . 5 8 Builder 8 | . 2 3 3 Tunneler 7 | . 2 4 1 Hauler 5 | . . 3 2 Recycler 10 | . 3 5 2 Operator 1 | . . . 1 Watcher 8 | . 2 4 2 Swarmer 7 | . . 7 . Grunt 28 | . 3 14 11 Duelist 1 | . . 1 . Sentry 8 | . . 4 4 Hunter 1 | . . . 1 Best Kill Streak 10 | . 10 8 7 Combat Bots Only 5 | . 2 4 5 Max Kills in Single Turn 4 | . 4 4 2 Gunslinging 1 | . . 1 . Exploded 3 | . 2 3 2 Melee . | . . . . Uniques/NPCs Destroyed . | . . . . Combat | -11 -10 -9 -8 -------- Run | Yrd Mat Mat Mat Hostile Shots Fired 216 | . 1 112 103 Missed 58 | . 1 27 30 Hits 158 | . . 85 73 Projectile 158 | . . 85 73 Critical Strikes 9 | . . 2 7 Damage Taken 2639 | . 99 1086 1454 Core 774 | . . 222 552 Absorbed by Shields . | . . . . Core Remaining (%) 81 | 100 100 44 . Volleys Fired 202 | 1 10 120 71 Largest 3 | 2 1 2 3 Hottest 123 | 40 30 50 123 Shots Fired 370 | 2 10 222 136 Gun 342 | 2 . 207 133 Cannon . | . . . . Launcher 28 | . 10 15 3 Special . | . . . . Kinetic 257 | 2 . 207 48 Thermal 1 | . . . 1 Explosive 28 | . 10 15 3 Electromagnetic 84 | . . . 84 Robot Hit Streak 14 | 1 2 11 14 Robot Miss Streak 4 | 1 1 4 4 Penetration Max . | . . . . Secondary Targets 7 | . . 5 2 Max Gunslinging Chain 1 | . . 1 1 Shots Hit Robots 255 | 1 2 151 101 Core Hits 158 | . 19 76 63 Critical Kills 1 | . . 1 . Critical Parts Destroyed 2 | . . 2 . Critical Strikes 3 | . . 3 . Destroy 3 | . . 3 . Melee Attacks . | . . . . Impact . | . . . . Slashing . | . . . . Piercing . | . . . . Sneak Attacks . | . . . . Combat Hostiles . | . . . . Follow-up Attacks . | . . . . Damage Inflicted 5991 | 26 641 2973 2351 Guns 4137 | 26 . 2237 1874 Cannons . | . . . . Explosions 1854 | . 641 736 477 Melee . | . . . . Ramming . | . . . . Kinetic 2789 | 26 . 2237 526 Thermal 418 | . . . 418 Explosive 1400 | . 641 700 59 Electromagnetic 1384 | . . 36 1348 Impact . | . . . . Slashing . | . . . . Piercing . | . . . . Highest Corruption 5 | . . 1 5 Average Corruption 1 | . . 1 5 Corruption Purged . | . . . . Corruption Blocked . | . . . . Effects 8 | . . 7 1 Message Errors 1 | . . 1 . Matter Fused 3 | . . 2 1 Energy Discharges 2 | . . 2 . Parts Fused 1 | . . 1 . Weapon Failures 1 | . . 1 . Overload Shots . | . . . . Overflow Damage 50 | . 8 3 39 Projectiles . | . . . . Explosions 50 | . 8 3 39 Melee . | . . . . Knockbacks . | . . . . Impact . | . . . . Kinetic . | . . . . Secondary . | . . . . Self-Inflicted Damage 309 | . 99 78 132 Shots 11 | . 2 4 5 Rammed . | . . . . Targets Rammed . | . . . . Kicked . | . . . . Crushed . | . . . . Highest Temperature 456 | . . 35 456 Average Temperature 76 | . . 14 94 Received Heat Transfer 1089 | . . 450 639 Effects 3 | . . . 3 Shutdowns 1 | . . . 1 Damage (minor) 2 | . . . 2 Siege Activations . | . . . . Martial Activations . | . . . . Shielding Activations . | . . . . Robots Disrupted . | . . . . Combat Hostiles . | . . . . Robots Corrupted 2 | . . . 2 Combat Hostiles 2 | . . . 2 Parts Fried 8 | . . . 8 Impact Corruptions . | . . . . Robots Melted . | . . . . Combat Hostiles . | . . . . Parts Melted . | . . . . Heat Transferred 400 | . . . 400 Parts Sabotaged . | . . . . Parts Stolen . | . . . . Parts Stripped . | . . . . Power Chain Reactions 7 | . . . 7 Alert | -11 -10 -9 -8 ------- Run | Yrd Mat Mat Mat Maximum Alert Level 2 | . . 2 1 Low Security (%) 41 | 100 100 16 59 Level 1 54 | . . 74 40 Level 2 4 | . . 9 . Level 3 . | . . . . Level 4 . | . . . . Level 5 . | . . . . High Security . | . . . . Max Security . | . . . . Peak Influence 493 | . 187 493 368 Initial 206 | . . 72 206 Average 230 | . 116 275 208 Influence Increases 1819 | . 282 943 594 Destroy 0b10 Robot/C 900 | . 60 520 320 Destroy 0b10 Robot/NC 260 | . 45 120 95 Destroy Leader 276 | . 24 154 98 Disable Machine 120 | . 75 30 15 Destroy Structure 203 | . 78 74 51 Partial Spotted 15 | . . 15 . Lose Combat Pursuer 45 | . . 30 15 Influence Decreases 1493 | . 110 626 757 Entered New Map 383 | . . 100 283 Time Decay 990 | . 110 506 374 Lost Part 120 | . . 20 100 Squads Dispatched 10 | . 1 5 4 Investigation 4 | . . 3 1 Extermination . | . . . . Reinforcement 6 | . 1 2 3 Assault . | . . . . Garrison . | . . . . Intercept . | . . . . Searches Triggered . | . . . . Construction Impeded 2 | . . . 2 Haulers Reinforced . | . . . . Active Scanning Responses . | . . . . Cargo Convoy Interrupts . | . . . . Stealth | -11 -10 -9 -8 --------- Run | Yrd Mat Mat Mat Distress Signals 6 | . . 4 2 Communications Jammed . | . . . . Distress Signals . | . . . . Times Spotted 64 | . 5 37 22 Peak Tracking Total 4 | . 2 4 4 Tactical Retreats 3 | . . 2 1 Traps | -11 -10 -9 -8 ------- Run | Yrd Mat Mat Mat Traps Triggered 3 | . . 3 . Indirectly . | . . . . Trap Hack Attempts . | . . . . Triggered . | . . . . Disarmed . | . . . . Reprogrammed . | . . . . Reused . | . . . . Traps Extracted . | . . . . Installed . | . . . . Triggered . | . . . . Machines | -11 -10 -9 -8 ---------- Run | Yrd Mat Mat Mat Machines Disabled 8 | . 5 2 1 Max in Single Turn 1 | . 1 1 1 Machines Repaired . | . . . . Machines Dismantled . | . . . . Machines Sabotaged . | . . . . Overloaded Fab Kills . | . . . . Hacking | -11 -10 -9 -8 --------- Run | Yrd Mat Mat Mat Machines Accessed 1 | . . . 1 Terminals 1 | . . . 1 Fabricators . | . . . . Repair Stations . | . . . . Recycling Units . | . . . . Scanalyzers . | . . . . Garrison Access . | . . . . Total Hacks 1 | . . . 1 Successful 1 | . . . 1 Failed . | . . . . Catastrophic . | . . . . Database Lockouts . | . . . . Manual . | . . . . Terminals 1 | . . . 1 Fabricators . | . . . . Repair Stations . | . . . . Recycling Units . | . . . . Scanalyzers . | . . . . Garrison Access . | . . . . Terminal Hacks 1 | . . . 1 Record 1 | . . . 1 Fabricator Hacks . | . . . . Repair Station Hacks . | . . . . Recycling Unit Hacks . | . . . . Scanalyzer . | . . . . Garrison Access Hacks . | . . . . Unauthorized Hacks . | . . . . Terminals . | . . . . Fabricators . | . . . . Repair Stations . | . . . . Recycling Units . | . . . . Scanalyzers . | . . . . Garrison Access . | . . . . Data Cores Recovered . | . . . . Used . | . . . . Hacking Detections . | . . . . Full Trace Events . | . . . . Feedback Events . | . . . . Feedback Blocked . | . . . . Robot Schematics Acquired . | . . . . Robots Built . | . . . . Authchips . | . . . . Time . | . . . . Total Robot Build Rating . | . . . . Part Schematics Acquired . | . . . . Parts Built . | . . . . Authchips . | . . . . Time . | . . . . Total Part Build Rating . | . . . . Parts Repaired . | . . . . Time . | . . . . Parts Recycled . | . . . . Recycled Matter . | . . . . Retrieved Matter . | . . . . Retrieved Components . | . . . . Parts Scanalyzed . | . . . . Part Schematics Acquired . | . . . . Parts Damaged . | . . . . Bothacking | -11 -10 -9 -8 ------------ Run | Yrd Mat Mat Mat Used RIF Installer . | . . . . Robots Hacked . | . . . . Non-combat . | . . . . Combat . | . . . . Robot Hacks Applied . | . . . . Relay Couplers Released . | . . . . Fabnet Peak Effective % . | . . . . Robots Rewired . | . . . . Allies Hacked . | . . . . Hacks Repelled . | . . . . Allies | -11 -10 -9 -8 -------- Run | Yrd Mat Mat Mat Total Allies . | . . . . Largest Group . | . . . . Highest-Rated Group . | . . . . Highest-Rated Ally . | . . . . Total Orders . | . . . . Ally Attacks . | . . . . Total Damage . | . . . . Kills . | . . . . Allies Corrupted . | . . . . Allies Melted . | . . . . Intel | -11 -10 -9 -8 ------- Run | Yrd Mat Mat Mat Active Infowar (turns) 366 | . 208 158 . ECM 366 | . 208 158 . Robot Analysis Total . | . . . . Derelict Logs Recovered . | . . . . Drone Launches . | . . . . Drone Recoveries . | . . . . Exploration | -11 -10 -9 -8 ------------- Run | Yrd Mat Mat Mat Turns Passed 2556 | 55 255 1376 870 Spaces Moved 1085 | 42 137 618 288 Core 63 | 22 . . 41 Treads 721 | 20 137 339 225 Legs . | . . . . Wheels . | . . . . Hover 301 | . . 279 22 Flight . | . . . . Fastest Speed 50 | 50 160 56 116 Average Speed 165 | 102 160 158 191 Slowest Speed 400 | 160 160 240 400 Overloaded Moves . | . . . . Propulsion Burnouts . | . . . . Robots Hopped . | . . . . Potential Cave-ins . | . . . . Cave-ins Triggered 1 | . . . 1 Exploration Rate (%) 25 | 4 27 41 29 Regions Visited 3 Branch Regions . Pre-discovered Areas . | . . . . Known Exits Taken 2 | . 1 1 . Unknown Exits Taken 1 | 1 . . . Scrap Searched . | . . . . Spaces Dug 19 | . 3 16 . Terrain Destroyed 217 | . 81 88 48 Melee . | . . . . Projectile . | . . . . AOE 217 | . 81 88 48 Terrain Rammed . | . . . . Walls Destroyed . | . . . . Machines Disabled . | . . . . Actions | -11 -10 -9 -8 --------- Run | Yrd Mat Mat Mat Total 1490 | 52 163 794 481 Wait 110 | . 2 23 85 Move 1082 | 41 136 617 288 Hop . | . . . . Pick Up 36 | 5 9 7 15 Fast Attach 7 | . . 7 . Attach 25 | 5 2 5 13 Detach . | . . . . Swap 7 | . 2 3 2 Drop 21 | . 2 12 7 Fire 202 | 1 10 120 71 Melee . | . . . . Ram . | . . . . Kick . | . . . . Crush . | . . . . Escape Stasis . | . . . . Rewire . | . . . . Trap . | . . . . Miscellaneous . | . . . . Route ------- -11/Scrapyard -10/Materials -9/Materials (discovered 2 exits: *Mat / [*Min]) -8/Materials History --------- Turn | Location | Event 7 | -11/Scrapyard | Discovered new exit (range 15) 56 | -11/Scrapyard | Entered Materials 243 | -10/Materials | Discovered new exit (range 14) 303 | -10/Materials | Build established: Mutant 309 | -10/Materials | Identified exit to Materials 311 | -10/Materials | Entered another Materials area 311 | -9/Materials | Evolved 2 slots: Utility x2 873 | -9/Materials | Discovered new exit (range 9) 1603 | -9/Materials | Discovered new exit (range 7) 1612 | -9/Materials | Identified exit to Materials 1620 | -9/Materials | Core integrity fell below 50% 1687 | -9/Materials | Entered another Materials area 1687 | -8/Materials | Evolved 2 slots: Utility x1, Weapon x1 1781 | -8/Materials | Core integrity fell below 50% 1814 | -8/Materials | Lost 5 parts (1n4w) 2363 | -8/Materials | Build established: Scavenger-Gunner 2460 | -8/Materials | Crushed by falling debris 2460 | -8/Materials | Core integrity fell below 20% 2491 | -8/Materials | Lost 3 parts (1n1u1w) 2557 | -8/Materials | Destroyed by S-10 Pest with Light Assault Rifle Last Messages --------------- System corrupted by crushing effect (+5). Aluminum Leg crushed. U-05 Engineer lays Concrete. U-05 Engineer builds a Wall. U-05 Engineer lays Concrete. U-05 Engineer builds a Wall. U-05 Engineer lays Concrete. U-05 Engineer builds a Wall. System corrupted: Matter fused (-8). Acquired 8 matter. U-05 Engineer lays Concrete. ALERT: Alarm triggered, dispatching investigation squad. U-05 Engineer lays Concrete. K-01 Serf collects debris. U-05 Engineer lays Concrete. K-01 Serf collects debris. U-05 Engineer lays Concrete. Acquired Lgt. Ion Engine. Acquired 10 matter. Map ----- +----------------------------------------------------+ | ?????????????????????????????????????????????????? | | ?????????????????????????????????????????????????? | | ?????????????????????????????????????????????????? | | ?????????????????????????????????????????????????? | | ?????????????????????????????????????????????????? | | ??????????????????????????????????????############ | | ??????????????????????????????????????# ! # | | ??????????????????????????????????????# # | | ??????????????????????????????????????# # | | ??????????????????????????????????????# # | | ??????????????????????????????????????# # | | ??????????????????????????????????????# # | | ??????????????????????????????????????#= # | | ??????????????????????????????????????# # | | ??????????????????????????????????????# # | | ??????????????????????????????#############/###### | | ??????????????????????????????# == *#???# / = | | ??????????????????????????????# ===%##### =#=!=* | | ????#####?????????????????????# =[+%[= #!=== | | ????# ?????????????????????# !*##### #!*=[ | | ????# ?????????????????????# #???# #* [* | | ????# ?????????#######?????#[ #???# # [ | | ????# #?????????# ##########+####### ###+# | | ????# #?????????# k % | | ????# #?????????# " !| = | | ????# ^^#?#####???# ! @% % | | ????# ^ #?# !#???# ##########+######+######## | | ????# ### #???## ##????### #??????????? | | ????# ""# [ #????# #???????# #??????????? | | ????# T"# #????# #???????# """ #??????????? | | ????# ""# #????# #???????#="R !#??????????? | | ????# =### #????# #???????#!""" #??????????? | | ???## ##" #????#= #???????# [= #??????????? | | ???# =%%###"#######%! #???????#*######??????????? | | ???# *%[ =!%!*[[==#???????###???????????????? | | ???# % ![[ %#?????????????????????????? | | ???# [!= = !#?????????????????????????? | | ???# [%=###############?????????????????????????? | | ???## %####?????????????????????????????????????? | | ????# = ##??????????????????????????????????????? | | ????# =%###??????????????????????????????????????? | | ????# *#????????????????????????????????????????? | | ????# #????????????????????????????????????????? | | ????# #????????????????????????????????????????? | | ????# #????????????????????????????????????????? | | ????# #????????????????????????????????????????? | | ????" #????????????????????????????????????????? | | ????# #????????????????????????????????????????? | | ????# +????????????????????????????????????????? | | ????# #????????????????????????????????????????? | +----------------------------------------------------+ Best States ------------- Heat Dissipation 31 Energy Generation 14 Energy Capacity 280 Matter Stores 900 Matter Capacity 900 Sight Range 16 Terrain Scan Density 10 ECM Strength 1 Evasion (%) 53 Recoil Reduction 2 Item Schematics ----------------- None Robot Schematics ------------------ None Fabricated ------------ Nothing Repaired ---------- Nothing Alien Tech Used ----------------- None Achievements -------------- None Challenges ------------ None Game ------ Seed PlasmaUltimateClaws Manual? 0 Play Time 00:19:50 Cumulative 63.2 hours Start 2025.07.21 @ 18:20:49 End 2025.07.21 @ 18:38:11 Sessions 1 Manual Loads 0 Difficulty Rogue Special Mode None Game No. 267 Rogue 267 Adventurer 0 Explorer 0 Win Type - Total 0 Types 0/0/0/0/0/0/0/0/0/0 Lore% 43 Gallery% 31 Achievement% 25 Wizard Run 0 Options --------- Layout 2 ASCII 0 Keyboard 0 Movement Mouse Keybinds 0 Fullscreen 1 Font 24/Terminus Map View 50x44 Zoom Use 0% Tactical HUD 0 Map Filters NONE Filters NONE Steam 1 RUN: d76bca64-1796-494a-9d23-adb2adaca0c6